Cogmind - Beta 17.1 @@@ ROGUE MODE // 2026.09.11 @ 01:27:24 Player: cel Result: Destroyed by Y-45 Defender with Heavy Assault Rifle Performance ------------- Evolutions (1) 500 Regions Visited (2) 400 Robots Destroyed (32) 160 Value Destroyed (643) 643 Prototype IDs (1) 20 Alien Tech Used (0) 0 Bonus (0) 0 TOTAL SCORE: 1723 Bonus ------- None Cogmind --------- Core Integrity 0/400 Matter 300/300 Energy 250/250 System Corruption 0% Temperature Cool (93) Movement Walking (120) Location -9/Materials Parts ------- > --- POWER (1) -------- Ion Engine > --- PROPULSION (4) --- Aluminum Leg Aluminum Leg Aluminum Leg Aluminum Leg > --- UTILITY (2) ------ Small Storage Unit Light Armor Plating > --- WEAPON (2) ------- Small Laser Beam Rifle > --- INVENTORY (8) ---- Light Ion Engine Light Ion Engine Aluminum Leg Heat Sink Improved Terrain Scanner Seismic Detector Small Laser Peak State ------------ > --- POWER ------------ Ion Engine > --- PROPULSION ------- Aluminum Leg Aluminum Leg > --- UTILITY ---------- Small Storage Unit Improved Terrain Scanner > --- WEAPON ----------- Improved Medium Laser Heavy Assault Rifle > --- INVENTORY -------- Ion Engine Light Ion Engine Aluminum Leg Aluminum Leg Improved Terrain Scanner Seismic Detector Beam Rifle [Rating: 13] Favorites ----------- Power Light Ion Engine Engine Light Ion Engine Propulsion Aluminum Leg Leg Aluminum Leg Utility Small Storage Unit Device Improved Terrain Scanner Storage Small Storage Unit Protection Light Armor Plating Weapon Assault Rifle Energy Gun EM Pulse Gun Ballistic Gun Assault Rifle Launcher Grenade Launcher Special Melee Weapon Datajack Build | -11 -10 -9 ------- Run | Yrd Mat Mat Slots Evolved 2 | . . 2 Power . | . . . Propulsion 2 | . . 2 Utility . | . . . Weapon . | . . . Parts Attached 31 | 7 . 24 Power 6 | 1 . 5 Engine 6 | 1 . 5 Core . | . . . Reactor . | . . . Propulsion 10 | 2 . 8 Treads . | . . . Leg 10 | 2 . 8 Wheel . | . . . Hover . | . . . Flight . | . . . Utility 4 | 2 . 2 Device 2 | 1 . 1 Storage 1 | 1 . . Processor . | . . . Hackware . | . . . Protection 1 | . . 1 Artifact . | . . . Weapon 11 | 2 . 9 Energy Gun 5 | 1 . 4 Energy Cannon . | . . . Ballistic Gun 4 | 1 . 3 Ballistic Cannon . | . . . Launcher 1 | . . 1 Special Weapon . | . . . Impact Weapon . | . . . Slashing Weapon . | . . . Piercing Weapon . | . . . Special Melee Weapon 1 | . . 1 Unidentified Prototypes 1 | . . 1 Parts Lost 18 | . . 18 Power 3 | . . 3 Propulsion 5 | . . 5 Utility 1 | . . 1 Weapon 9 | . . 9 Highest Loss Streak 8 | . . 8 To Critical Strikes . | . . . Average Backups 5 | 3 7 6 Power 1 | 1 2 1 Propulsion . | . . . Utility 2 | 1 3 2 Weapon 1 | 1 1 1 Tool/Special . | . . . Unused Backups 8 | . . 8 Power 3 | . . 3 Propulsion 1 | . . 1 Utility 3 | . . 3 Weapon 1 | . . 1 Tool/Special . | . . . Average Slot Usage (%) 77 | . 100 71 Engine 10 | . 14 9 Leg 24 | . 28 23 Device 8 | . 14 7 Storage 11 | . 14 11 Protection 2 | . . 3 Energy Gun 11 | . 14 10 Ballistic Gun 6 | . 14 4 Peak Build Rating 13 | 10 10 13 Average Rating 8 | 7 10 8 On Entrance 6 | . 10 10 Avg Prop Armor Cover (%) 12 | . . 12 Naked Turns . | . . . Heaviest Build 17 | 13 13 17 Greatest Support 40 | 20 20 40 Greatest Overweight (x) 5 | . . 5 Average Overweight (x) . | . . . Largest Inventory Capacity 8 | 8 8 8 Average Capacity 7 | 7 8 8 Most Carried 8 | 6 8 8 Average Carried 5 | 3 7 6 Final Capacity 8 | 8 8 8 Final Carried 8 | 6 8 7 Class Distribution -------------------- 78% | Mutant 21% | Scavenger-Mutant Dominant Class ---------------- Mutant | -10/Materials Scavenger-Mutant | -9/Materials Resources | -11 -10 -9 ----------- Run | Yrd Mat Mat Matter Collected 737 | 408 . 329 Remotely . | . . . Salvage Created 942 | 283 . 659 Parts 58 | 15 . 43 Haulers Intercepted . | . . . Recyclers Shooed 1 | 1 . . Parts Field Recycled . | . . . Retrieved Matter . | . . . Parts Self-Destructed . | . . . Prevented . | . . . Parts Restored . | . . . Kills | -11 -10 -9 ------- Run | Yrd Mat Mat Combat Hostiles Destroyed 20 | . . 20 Guns 18 | . . 18 AOE 2 | . . 2 Classes Destroyed 7 | 3 . 4 Worker 4 | 3 . 1 Tunneler 7 | 7 . . Recycler 1 | 1 . . Swarmer 6 | . . 6 Grunt 10 | . . 10 Brawler 1 | . . 1 Sentry 3 | . . 3 Best Kill Streak 5 | 2 . 5 Combat Bots Only 5 | . . 5 Max Kills in Single Turn 2 | 1 . 2 Gunslinging 1 | . . 1 Exploded 1 | . . 1 Melee . | . . . Uniques/NPCs Destroyed . | . . . Combat | -11 -10 -9 -------- Run | Yrd Mat Mat Hostile Shots Fired 194 | . . 194 Missed 44 | . . 44 Hits 150 | . . 150 Melee 1 | . . 1 Projectile 149 | . . 149 Critical Strikes 5 | . . 5 Damage Taken 1786 | . 24 1762 Core 406 | . . 406 Absorbed by Shields . | . . . Core Remaining (%) 100 | 100 100 . Volleys Fired 137 | 46 3 88 Largest 2 | 1 1 2 Hottest 96 | 20 20 96 Shots Fired 169 | 46 3 120 Gun 164 | 46 3 115 Cannon . | . . . Launcher 5 | . . 5 Special . | . . . Kinetic 103 | 46 3 54 Thermal 53 | . . 53 Explosive 5 | . . 5 Electromagnetic 8 | . . 8 Robot Hit Streak 9 | 8 . 9 Robot Miss Streak 4 | 4 3 4 Penetration Max . | . . . Secondary Targets 2 | . . 2 Max Gunslinging Chain 1 | . . 1 Shots Hit Robots 115 | 28 . 87 Core Hits 49 | 12 . 37 Critical Kills . | . . . Critical Parts Destroyed . | . . . Critical Strikes 4 | . . 4 Burn 4 | . . 4 Melee Attacks 4 | . . 4 Impact . | . . . Slashing . | . . . Piercing . | . . . Sneak Attacks 3 | . . 3 Combat Hostiles . | . . . Follow-up Attacks . | . . . Damage Inflicted 2031 | 377 . 1654 Guns 1507 | 377 . 1130 Cannons . | . . . Explosions 524 | . . 524 Melee . | . . . Ramming . | . . . Kinetic 817 | 377 . 440 Thermal 598 | . . 598 Explosive 524 | . . 524 Electromagnetic 92 | . . 92 Impact . | . . . Slashing . | . . . Piercing . | . . . Highest Corruption . | . . . Average Corruption . | . . . Corruption Purged . | . . . Corruption Blocked . | . . . Overload Shots . | . . . Overflow Damage . | . . . Projectiles . | . . . Explosions . | . . . Melee . | . . . Knockbacks . | . . . Impact . | . . . Kinetic . | . . . Secondary . | . . . Self-Inflicted Damage 66 | . . 66 Shots 3 | . . 3 Rammed . | . . . Targets Rammed . | . . . Kicked . | . . . Crushed . | . . . Highest Temperature 238 | . . 238 Average Temperature 81 | . . 81 Received Heat Transfer 642 | . . 642 Siege Activations . | . . . Martial Activations . | . . . Shielding Activations . | . . . Robots Disrupted . | . . . Combat Hostiles . | . . . Robots Corrupted . | . . . Combat Hostiles . | . . . Parts Fried . | . . . Impact Corruptions . | . . . Robots Melted . | . . . Combat Hostiles . | . . . Parts Melted 2 | . . 2 Heat Transferred 1680 | . . 1680 Parts Sabotaged . | . . . Parts Stolen . | . . . Parts Stripped . | . . . Power Chain Reactions . | . . . Alert | -11 -10 -9 ------- Run | Yrd Mat Mat Maximum Alert Level . | . . . Low Security (%) 100 | 100 100 100 Level 1 . | . . . Level 2 . | . . . Level 3 . | . . . Level 4 . | . . . Level 5 . | . . . High Security . | . . . Max Security . | . . . Peak Influence 109 | 10 15 109 Initial . | . . . Average 24 | 1 1 57 Influence Increases 603 | 55 15 533 Destroy 0b10 Robot/C 400 | . . 400 Destroy 0b10 Robot/NC 60 | 55 . 5 Destroy Leader 80 | . . 80 Destroy Structure 18 | . . 18 Lose Combat Pursuer 45 | . 15 30 Influence Decreases 494 | 55 15 424 Time Decay 314 | 55 15 244 Lost Part 180 | . . 180 Squads Dispatched 2 | . . 2 Investigation . | . . . Extermination . | . . . Reinforcement 2 | . . 2 Assault . | . . . Garrison . | . . . Intercept . | . . . Searches Triggered . | . . . Construction Impeded . | . . . Haulers Reinforced . | . . . Active Scanning Responses . | . . . Cargo Convoy Interrupts . | . . . Stealth | -11 -10 -9 --------- Run | Yrd Mat Mat Distress Signals 2 | . 1 1 Communications Jammed . | . . . Distress Signals . | . . . Times Spotted 36 | . 2 34 Peak Tracking Total 6 | . 2 6 Tactical Retreats 3 | . 1 2 Traps | -11 -10 -9 ------- Run | Yrd Mat Mat Traps Triggered 1 | . 1 . Indirectly . | . . . Trap Hack Attempts . | . . . Triggered . | . . . Disarmed . | . . . Reprogrammed . | . . . Reused . | . . . Traps Extracted . | . . . Installed . | . . . Triggered . | . . . Machines | -11 -10 -9 ---------- Run | Yrd Mat Mat Machines Disabled . | . . . Max in Single Turn . | . . . Machines Repaired . | . . . Machines Dismantled . | . . . Machines Sabotaged . | . . . Overloaded Fab Kills . | . . . Hacking | -11 -10 -9 --------- Run | Yrd Mat Mat Machines Accessed 1 | . . 1 Terminals 1 | . . 1 Fabricators . | . . . Repair Stations . | . . . Recycling Units . | . . . Scanalyzers . | . . . Garrison Access . | . . . Total Hacks 1 | . . 1 Successful 1 | . . 1 Failed . | . . . Catastrophic . | . . . Database Lockouts . | . . . Manual . | . . . Terminals 1 | . . 1 Fabricators . | . . . Repair Stations . | . . . Recycling Units . | . . . Scanalyzers . | . . . Garrison Access . | . . . Terminal Hacks 1 | . . 1 Record 1 | . . 1 Fabricator Hacks . | . . . Repair Station Hacks . | . . . Recycling Unit Hacks . | . . . Scanalyzer . | . . . Garrison Access Hacks . | . . . Unauthorized Hacks . | . . . Terminals . | . . . Fabricators . | . . . Repair Stations . | . . . Recycling Units . | . . . Scanalyzers . | . . . Garrison Access . | . . . Data Cores Recovered . | . . . Used . | . . . Hacking Detections . | . . . Full Trace Events . | . . . Feedback Events . | . . . Feedback Blocked . | . . . Robot Schematics Acquired . | . . . Robots Built . | . . . Authchips . | . . . Time . | . . . Total Robot Build Rating . | . . . Part Schematics Acquired . | . . . Parts Built . | . . . Authchips . | . . . Time . | . . . Total Part Build Rating . | . . . Part Studies Acquired . | . . . Parts Repaired . | . . . Time . | . . . Parts Recycled . | . . . Recycled Matter . | . . . Retrieved Matter . | . . . Retrieved Components . | . . . Parts Scanalyzed . | . . . Part Schematics Acquired . | . . . Parts Damaged . | . . . Bothacking | -11 -10 -9 ------------ Run | Yrd Mat Mat Used RIF Installer . | . . . Robots Hacked 1 | . . 1 Non-combat 1 | . . 1 Combat . | . . . Robot Hacks Applied 2 | . . 2 parse_system 1 | . . 1 no_distress 1 | . . 1 Relay Couplers Released . | . . . Fabnet Peak Effective % . | . . . Robots Rewired . | . . . Allies Hacked . | . . . Hacks Repelled . | . . . Allies | -11 -10 -9 -------- Run | Yrd Mat Mat Total Allies . | . . . Largest Group . | . . . Highest-Rated Group . | . . . Highest-Rated Ally . | . . . Total Orders . | . . . Ally Attacks . | . . . Total Damage . | . . . Kills . | . . . Allies Corrupted . | . . . Allies Melted . | . . . Intel | -11 -10 -9 ------- Run | Yrd Mat Mat Active Infowar (turns) 744 | 235 162 347 Terrain 744 | 235 162 347 Robot Analysis Total . | . . . Derelict Logs Recovered . | . . . Drone Launches . | . . . Drone Recoveries . | . . . Exploration | -11 -10 -9 ------------- Run | Yrd Mat Mat Turns Passed 1326 | 608 162 556 Spaces Moved 734 | 403 129 202 Core 32 | 5 . 27 Treads . | . . . Legs 702 | 398 129 175 Wheels . | . . . Hover . | . . . Flight . | . . . Fastest Speed 50 | 50 120 120 Average Speed 124 | 119 120 137 Slowest Speed 300 | 120 120 300 Overloaded Moves . | . . . Propulsion Burnouts . | . . . Robots Hopped . | . . . Potential Cave-ins . | . . . Cave-ins Triggered . | . . . Exploration Rate (%) 17 | 10 20 23 Regions Visited 2 Branch Regions . Pre-discovered Areas . | . . . Known Exits Taken . | . . . Unknown Exits Taken 2 | 1 1 . Scrap Searched . | . . . Spaces Dug . | . . . Terrain Destroyed 18 | . . 18 Melee . | . . . Projectile . | . . . AOE 18 | . . 18 Terrain Rammed . | . . . Walls Destroyed . | . . . Machines Disabled . | . . . Actions | -11 -10 -9 --------- Run | Yrd Mat Mat Total 979 | 484 133 362 Wait 37 | 17 . 20 Move 732 | 402 128 202 Hop . | . . . Pick Up 32 | 12 2 18 Fast Attach 5 | 1 . 4 Attach 22 | 6 . 16 Detach . | . . . Swap 5 | . . 5 Drop 5 | . . 5 Fire 137 | 46 3 88 Melee 4 | . . 4 Ram . | . . . Kick . | . . . Crush . | . . . Escape Stasis . | . . . Rewire . | . . . Trap . | . . . Miscellaneous . | . . . Route ------- -11/Scrapyard -10/Materials -9/Materials History --------- Turn | Location | Event 18 | -11/Scrapyard | Discovered new exit (range 16) 609 | -11/Scrapyard | Entered Materials 610 | -10/Materials | Build established: Mutant 761 | -10/Materials | Discovered new exit (range 8) 771 | -10/Materials | Entered another Materials area 771 | -9/Materials | Evolved 2 slots: Propulsion x2 956 | -9/Materials | Lost 8 parts (1p2n5w) 1025 | -9/Materials | Core integrity fell below 50% 1075 | -9/Materials | Lost 4 parts (1p2n1w) 1158 | -9/Materials | Lost 5 parts (1p1n1u2w) 1252 | -9/Materials | Core integrity fell below 20% 1327 | -9/Materials | Destroyed by Y-45 Defender with Heavy Assault Rifle Last Messages --------------- B-36 Bruiser suffers critical hit (Burn). B-36 Bruiser overheating. B-36 Bruiser heat damages Lgt. Treads. B-36 Bruiser overheating. B-36 Bruiser heat damages Lgt. Treads. B-36 Bruiser overheating. B-36 Bruiser heat spikes uncontrollably. Lgt. Treads melted. B-36 Bruiser destroyed. Switching to secondary target: G-34 Mercenary. G-34 Mercenary destroyed. Acquired Aluminum Leg. R-06 Scavenger collects Aluminum Leg. R-06 Scavenger collects Sml. Laser. Acquired 10 matter. Critical hit (Burn: +37). Y-45 Defender suffers critical hit (Burn). Beam Rifle melted. Y-45 Defender destroyed. K-01 Serf collects debris. Map ----- +----------------------------------------------------+ | ??????????????????????????????????????????????? | | ??????????????????????????????????????????????? | | ??????????????????????????????????????????????? | | ??????????????????????????????????????????????? | | ??????????????????????????????????????????????? | | ??????????????????????????????????????????????? | | ??????????????????????? ??????????????????????? | | ??????????????????????# ??????????????????????? | | ??????????????????????# ??????????????????????? | | ?????????????????????? ??????????????????????? | | ?????????????????????? ?????????????????????? | | ??????????????????????? ?????????????????????? | | ??????????????????????? ?????????????????????? | | ??????????????????????? ?????????????????????? | | ???????????????????????# ?????????????????????? | | ????????????#??????????# ?????####????????????? | | ???????????? ??????### ###? ?????????????? | | ??????????? ##### # "???????????????? | | ??????????? = # ????????????????? | | ?????????? =%[ T + ?????????????????? | | ?????????????? #??????????????????? | | ?????????????????????# #??????????????????? | | ?????????????????????##### #################### | | ?????????????????????????# | | ?????????????????????#####+##### #???? | | ?????????????????????#@ g # T % #??? | | ?????????????????????# % Y k # #?? ? | | ?????????????????????# # #??? | | ?????????????????????# # #?? ? | | ?????????????????????########### #?### | | ???????????????????????????????# #?# | | ???????????????????????????????# #?# | | ???????????????????????????????# #?#= | | ???????????????????????????????# " #?# | | ???????????????????????????????# "" #?# " | | ???????????????????????????????# "" ### " | | ?????????????????????????????+ "" + " | | ?????????????????????????????# # | | ?????????????????????????????+ ### | | ?????????????????????????????# #?? | | ?????????????????????????????# #?? | | ?????????????????????????????#+######## #?# | | ?????????????????????????????#????????# #?? | | ??????????????????????????????????????# #?? | | ??????????????????????????????????????# ##? | | ??????????????????????????????????????# ^ ?? | | ??????????????????????????????????????# ?? | | ??????????????????????????????????????+ ? | | ??????????????????????????????????????# ? | | ??????????????????????????????????????# ? | +----------------------------------------------------+ Best States ------------- Heat Dissipation 28 Energy Generation 10 Energy Capacity 250 Matter Stores 300 Matter Capacity 300 Sight Range 16 Terrain Scan Range 16 Terrain Scan Density 10 Armor Coverage 150 Evasion (%) 55 Item Schematics ----------------- None Robot Schematics ------------------ None Fabricated ------------ Nothing Repaired ---------- Nothing Studied --------- None Alien Tech Used ----------------- None Achievements -------------- None Challenges ------------ None Game ------ Seed RainbowPietyScythe Manual? 0 Play Time 00:18:59 Cumulative 23.5 hours Start 2026.09.11 @ 01:10:59 End 2026.09.11 @ 01:27:24 Sessions 1 Manual Loads 0 Difficulty Rogue Special Mode None Game No. 33 Rogue 33 Adventurer 0 Explorer 0 Win Type - Total 0 Types 0/0/0/0/0/0/0/0/0/0 Lore% 22 Gallery% 19 Achievement% 15 Wizard Run 0 Options --------- Layout 1 ASCII 0 Keyboard 0 Movement Mouse Keybinds 0 Fullscreen 1 Font 16/SmallcapsGlow Map View 50x40 Zoom Use 0% Tactical HUD 0 Map Filters NONE Filters NONE Steam SD RUN: dc02cff7-64af-4b09-8a7d-4ff519f6f286